{"text_format":"1","workbook":"xlsx","n_sheets":2,"sheets":["QUESTIONARIO","result"],"not_rendered":{"charts":0,"images":3,"macros":1,"external_links":0,"defined_names":1,"comments":1,"pivot_tables":0},"unopened":[],"bounds":{"document_bytes":16777216,"sheet_cells":100000,"rows_first":2000,"rows_last":500,"rows_between":2000,"halvings":0,"cell_chars":16384,"cell_head_chars":4096},"cells_cut":0,"cells_raw":0,"read":"whole","date_system":"1900"}

{"sheet":"QUESTIONARIO","index":0,"n_rows":964,"n_cols":20,"rows_kept":964,"cut":false,"hidden":false,"merged":[[960,3,961,19],[918,3,919,19],[922,3,923,19],[949,3,950,19],[913,1,915,18],[921,3,921,19],[928,4,929,18],[934,4,935,18],[948,3,948,19],[959,3,959,19],[944,6,944,18],[794,3,794,19],[909,3,909,19],[910,3,911,19],[894,14,894,17],[795,3,796,19],[798,1,798,18],[842,3,842,19],[843,3,844,19],[846,1,846,18],[346,3,346,19],[347,3,348,19],[627,3,627,19],[628,3,629,19],[631,1,631,18],[693,3,693,19],[694,3,695,19],[750,1,750,18],[350,1,350,18],[398,3,398,19],[399,3,400,19],[402,1,402,18],[478,3,478,19],[479,3,480,19],[571,1,571,18],[697,1,697,18],[746,3,746,19],[747,3,748,19],[482,1,482,18],[567,3,567,19],[568,3,569,19],[280,1,282,18],[284,1,284,18],[214,8,214,18],[204,1,205,18],[225,7,225,18],[222,7,222,18],[228,7,228,18],[231,7,231,18],[233,10,233,13],[238,10,238,13],[277,3,278,19],[268,3,268,19],[272,3,272,19],[276,3,276,19],[265,3,266,19],[269,3,270,19],[56,3,57,19],[19,13,19,18],[21,13,21,18],[23,1,25,18],[27,1,28,18],[31,3,31,19],[64,3,65,19],[68,3,69,19],[72,3,73,19],[42,1,43,18],[45,1,45,19],[60,3,61,19],[76,3,77,19],[2,0,2,19],[4,0,4,19],[6,0,6,19],[8,1,12,18],[13,1,17,18],[101,2,104,18],[105,2,108,18],[94,19,95,19],[98,19,99,19],[102,19,103,19],[34,3,34,19],[40,3,40,19],[47,3,47,19],[51,3,51,19],[55,3,55,19],[59,3,59,19],[63,3,63,19],[67,3,67,19],[71,3,71,19],[75,3,75,19],[37,3,37,19],[48,3,49,19],[52,3,53,19],[79,3,79,19],[180,12,180,18],[178,7,178,18],[166,7,166,18],[273,3,274,19],[242,10,242,13],[249,4,250,18],[248,4,248,18],[261,1,262,18],[264,3,264,19],[125,1,126,18],[131,4,132,18],[138,7,138,18],[141,3,142,19],[147,4,148,18],[153,4,154,18],[160,1,161,18],[80,3,81,19],[83,1,84,19],[87,2,92,18],[93,2,96,18],[97,2,100,18]]}
["v.1.7"]
[]
["Questionário"]
[]
["Diagnóstico Tecnológico do Sector Corticeiro"]
[]
["Rolhas Naturais e Rolhas Técnicas"]
[]
[null,"Alinhado numa das estratégias que a APCOR e CTCOR definiram para o ano em curso que visa a capacitação e inovação tecnológica do setor nas diferentes fases do processo produtivo e nos diferentes segmentos de produto, a APCOR está a desenvolver com a Universidade Católica do Porto um documento estratégico que terá como objetivo traçar ações e medidas que possam ajudar a aumentar a capacitação tecnológica do sector e desta forma, quer nas empresas quer do CTCOR, e, assim, contribuir para a construção de uma indústria de futuro.\n\nDe forma a suportar esse documento e definir os principais eixos estratégicos, a APCOR e o Centro Tecnológico da Cortiça estão a desenvolver um trabalho conjunto que visa realizar um Diagnóstico Tecnológico do Sector.\nDeste modo, está a ser preparado um questionário com várias temáticas que será a ferramenta fundamental para o levantamento do atual estado das nossas empresas face à dimensão tecnológica. Apelamos, desde já, à sua participação para que o sucesso deste trabalho seja uma realidade. deste trabalho e para o qual vamos pedir o seu apoio. \nA resposta ao questionário é totalmente confidencial, sendo apenas utilizados os dados agregados das respostas. \n \nAgradecemos, desde já, a sua disponibilidade e empenho na boa execução de mais um projeto em prol do sector."]
[]
[]
[]
[]
[null,"O questionário é composto por 3 secções: Atividades (iniciais) Transversais, Atividades Específicas e Atividades (finais) Transversais  (AITransversal, A1, A2, A3,… e AFTransversal).\n\nNenhuma das questões é de resposta obrigatória.\n\nQuando para determinada operação a empresa tiver mais do que uma tipologia de tecnologia disponível, deve assinalar-se a opção mais representativa na realidade da empresa\n\nSolicitar à empresa um email para posterior envio do pdf"]
[]
[]
[]
[]
[]
[null,"Código da empresa:"]
[]
[null,"Técnico CTCOR/APCOR responsável pelo questionário"]
[]
[null,"Atividades Transversais\n\nNas Atividades (iniciais) Transversais (AITx) encontrará perguntas de escolha múltipla e de resposta descritiva. \nNenhuma das questões é de resposta obrigatória."]
[]
[]
[]
[null,"AIT1 \nDados gerais da empresa"]
[]
[]
[null,null,null,"AIT1.1a - Produção média (estimada) anual de rolhas naturais (número de rolhas)"]
[]
[]
[null,null,null,"AIT1.1b - Produção média (estimada) anual de rolhas técnicas(número de rolhas)"]
[]
[]
[null,null,null,"AIT1.2 Número de trabalhadores"]
[]
[]
[null,null,null,"AIT1.3 Qual o número de trabalhadores do género feminino"]
[]
[]
[null,"AIT2 \nIndústria 4.0"]
[]
[]
[null,"AIT2.1 Que tecnologias de indústria 4.0 já estão implementadas na empresa? "]
[]
[null,null,null,"AIT2.1a Internet das coisas (Internet of Things - IoT) \n(não preencher em caso de não resposta; colocar \"não\" ou \"Sim\" e eventual info adicional)"]
[]
[]
[]
[null,null,null,"AIT2.1b Inteligência artificial\n(não preencher em caso de não resposta; colocar \"não\" ou \"Sim\" e eventual info adicional)"]
[]
[]
[]
[null,null,null,"AIT2.1c Realidade aumentada\n(não preencher em caso de não resposta; colocar \"não\" ou \"Sim\" e eventual info adicional)"]
[]
[]
[]
[null,null,null,"AIT2.1d Robótica\n(não preencher em caso de não resposta; colocar \"não\" ou \"Sim\" e eventual info adicional)"]
[]
[]
[]
[null,null,null,"AIT2.1e Sistema Ciberfísicos\n(não preencher em caso de não resposta; colocar \"não\" ou \"Sim\" e eventual info adicional)"]
[]
[]
[]
[null,null,null,"AIT2.1f Big data e análise de dados\n(não preencher em caso de não resposta; colocar \"não\" ou \"Sim\" e eventual info adicional)"]
[]
[]
[]
[null,null,null,"AIT2.1g Blockchain\n(não preencher em caso de não resposta; colocar \"não\" ou \"Sim\" e eventual info adicional)"]
[]
[]
[]
[null,null,null,"AIT2.1h Cloud Computing\n(não preencher em caso de não resposta; colocar \"não\" ou \"Sim\" e eventual info adicional)"]
[]
[]
[]
[null,null,null,"AIT2.1i Cibersegurança\n(não preencher em caso de não resposta; colocar \"não\" ou \"Sim\" e eventual info adicional)"]
[]
[]
[]
[null,"AIT2.2 Assinalar em que nível de automação a empresa se encontra segundo o modelo ISA95 (nível 0 a 4)"]
[]
[]
[]
[null,null,"Nível 4\nPlaneamento \nestratégico e logística"]
[]
[]
[]
[null,null,null,null,null,null,null,null,null,null,null,null,null,null,null,null,null,null,null,"+info    "]
[]
[null,null,"Nível 3\nGestão da produção"]
[null,null,null,null,null,null,null,null,null,null,null,null,null,null,null,null,null,null,null,"+info    "]
[]
[]
[null,null,"Nível 2\nMonitorização e supervisão"]
[null,null,null,null,null,null,null,null,null,null,null,null,null,null,null,null,null,null,null,"+info    "]
[]
[]
[null,null,"Nível 1\nControlo/sensorização"]
[null,null,null,null,null,null,null,null,null,null,null,null,null,null,null,null,null,null,null,"+info    "]
[]
[]
[null,null,"Nível 0\nProcesso produtivo "]
[]
[]
[]
[]
[]
[]
[]
[]
[]
[]
[]
[]
[]
[]
[]
[]
[null,null,null,"+info"]
[null,null,null,"+info"]
[]
[null,"AIT3 \nEconomia Circular"]
[]
[]
[]
[]
[]
[]
[]
[]
[]
[]
[]
[]
[]
[]
[null,null,null,"AIT3.3 A empresa tem um sistema de reciclagem implementado? Para que materiais  (mat. escritório,…)?"]
[]
[]
[]
[]
[]
[]
[]
[]
[]
[]
[]
[]
[]
[]
[]
[]
[]
[]
[]
[null,"AIT4 \nSustentabilidade ambiental"]
[]
[]
[]
[]
[]
[]
[]
[]
[]
[]
[]
[]
[]
[]
[]
[]
[]
[]
[]
[null,null,null,null,"Quantos litros de efluente gera mensalmente?"]
[]
[]
[]
[]
[]
[]
[]
[]
[]
[]
[]
[]
[]
[]
[]
[]
[null,null,null,"+info"]
[null,null,null,"+info"]
[]
[]
[]
[]
[]
[null,"AIT5 \nSustentabilidade energética"]
[]
[]
[]
[]
[]
[]
[]
[]
[]
[]
[]
[]
[]
[]
[]
[]
[]
[]
[]
[]
[]
[]
[]
[]
[]
[]
[]
[]
[null,null,null,"Qual a potência instalada (kW)",null,null,null,null,null,null,null,false,false,null,"kW"]
[]
[]
[]
[]
[null,null,null,null,null,null,null,null,null,null,null,false,false,null,"kW"]
[]
[]
[]
[null,null,null,null,null,null,null,null,null,null,null,false,false,null,"kW"]
[]
[]
[]
[]
[]
[null,null,null,null,"(especificar diferentes níveis em diferentes etapas)"]
[]
[]
[]
[]
[]
[]
[]
[]
[]
[]
[]
[]
[null,"AIT6 \nPrevenção, extração e deteção de compostos orgânicos voláteis"]
[]
[]
[null,null,null,"AIT6.1 A empresa possui sistema de extração de compostos orgânicos voláteis como 2,4,6-tricloroanisol (TCA)?\nSe sim, quantos e qual é o princípio do método associado (designação opcional).\nPor favor especificar que percentagem de granulado/rolhas são abrangidas por esse(s) método(s)."]
[]
[]
[]
[null,null,null,"AIT6.2 A empresa possuí processos preventivos relativamente à contaminação da cortiça com compostos orgânicos voláteis como 2,4,6-tricloroanisol (TCA). Se sim, quantos e qual é a designação comercial e o princípio do método associado.\nPor favor especificar que percentagem de rolhas são abrangidas por esse(s) método(s)."]
[]
[]
[]
[null,null,null,"AIT6.3 A empresa possuí sistema industrial de deteção individual de compostos orgânicos voláteis como 2,4,6-tricloroanisol (TCA) rolha-a-rolha? Se sim, quantos e qual é o princípio do método associado.\nPor favor especificar qual a percentagem de rolhas testadas."]
[]
[]
[]
[null,null,null,"Aspetos importantes que a empresa pretende referir\nIdentificar a Atividade (inicial) Transversal ao qual o comentário é feito utilizando o código (AITx)"]
[]
[]
[]
[null,"Atividades Específicas\n\nDeve ser escolhida a opção mais evoluída existente na empresa. Algumas operações têm mais do que um grupo de escolha múltipla.\nCada atividade é constituída por operações (O1, O2, O3,…) tendo por base o Código das Práticas Rolheiras.\nNenhuma das questões é de resposta obrigatória."]
[]
[]
[]
[null,"A1 - Preparação de cortiça"]
[]
[]
[]
[]
[]
[]
[]
[]
[]
[]
[]
[]
[]
[]
[]
[]
[]
[]
[]
[]
[]
[]
[]
[]
[]
[]
[null,null,null,"+info"]
[null,null,null,"+info"]
[]
[]
[]
[]
[]
[]
[]
[]
[]
[]
[]
[]
[]
[]
[]
[]
[]
[]
[]
[]
[]
[]
[]
[]
[]
[]
[]
[]
[]
[]
[]
[]
[]
[null,null,null,"Aspetos importantes que a empresa pretende referir\nIdentificar a atividade ou operação ao qual o cometário respeita."]
[]
[]
[]
[null,"A2 - Fabricação de granulados destinados à indústria rolheira"]
[]
[]
[]
[]
[]
[]
[]
[]
[]
[]
[]
[]
[]
[]
[]
[]
[]
[]
[]
[]
[]
[]
[]
[]
[]
[]
[]
[]
[]
[]
[]
[]
[]
[]
[]
[]
[]
[]
[]
[]
[]
[]
[]
[]
[]
[]
[]
[null,null,null,"Aspetos importantes que a empresa pretende referir\nIdentificar a atividade ou operação ao qual o cometário respeita."]
[]
[]
[]
[null,"A3 - Fabricação de discos de cortiça natural"]
[]
[]
[]
[]
[]
[]
[]
[]
[]
[]
[]
[]
[]
[]
[]
[]
[]
[]
[]
[]
[]
[]
[]
[]
[]
[]
[]
[]
[]
[]
[]
[]
[]
[]
[]
[]
[]
[]
[]
[]
[]
[]
[]
[]
[]
[]
[]
[]
[]
[]
[]
[]
[]
[]
[]
[]
[]
[]
[]
[]
[]
[]
[]
[]
[]
[]
[]
[]
[]
[]
[]
[]
[]
[]
[]
[null,null,null,"Aspetos importantes que a empresa pretende referir\nIdentificar a atividade ou operação ao qual o cometário respeita."]
[]
[]
[]
[null,"A4 - Fabricação de rolhas de cortiça natural"]
[]
[]
[]
[]
[]
[]
[]
[]
[]
[]
[]
[]
[]
[]
[]
[]
[]
[]
[]
[]
[]
[]
[]
[]
[]
[]
[]
[]
[]
[]
[]
[]
[]
[]
[]
[]
[]
[]
[]
[]
[]
[]
[]
[]
[]
[]
[]
[]
[]
[]
[]
[]
[]
[]
[]
[]
[]
[]
[]
[]
[]
[]
[]
[]
[]
[]
[]
[]
[]
[]
[]
[]
[]
[]
[]
[]
[]
[]
[]
[]
[]
[]
[]
[]
[null,null,null,"Aspetos importantes que a empresa pretende referir\nIdentificar a atividade ou operação ao qual o cometário respeita."]
[]
[]
[]
[null,"A6 - Fabrico de bastões, corpos e rolhas de cortiça aglomerada/microaglomerada"]
[]
[]
[]
[]
[]
[]
[]
[]
[]
[]
[]
[]
[]
[]
[]
[]
[]
[]
[]
[]
[]
[]
[]
[]
[]
[]
[]
[]
[]
[]
[]
[]
[]
[]
[]
[]
[]
[]
[]
[]
[]
[]
[]
[]
[]
[]
[]
[]
[]
[]
[]
[]
[]
[]
[]
[null,null,null,"Aspetos importantes que a empresa pretende referir\nIdentificar a atividade ou operação ao qual o cometário respeita."]
[]
[]
[]
[null,"A7 - Fabricação de rolhas de cortiça aglomerada/microaglomerada com discos de cortiça natural, do tipo A2R, A1R, 1+1, 0+1"]
[]
[]
[]
[]
[]
[]
[]
[]
[]
[]
[]
[]
[]
[]
[]
[]
[]
[]
[]
[]
[]
[]
[]
[]
[]
[]
[]
[]
[]
[]
[]
[]
[]
[]
[]
[]
[]
[]
[]
[]
[]
[]
[]
[]
[]
[]
[]
[]
[]
[]
[]
[]
[]
[]
[]
[]
[]
[]
[]
[]
[]
[null,null,null,"Aspetos importantes que a empresa pretende referir\nIdentificar a atividade ou operação ao qual o cometário respeita."]
[]
[]
[]
[null,"A10 - Lavação e secagem de rolhas / corpos para rolhas capsuladas"]
[]
[]
[]
[]
[]
[]
[]
[]
[]
[]
[]
[]
[]
[]
[]
[]
[]
[]
[]
[]
[]
[]
[]
[]
[]
[]
[]
[]
[]
[]
[]
[]
[]
[]
[]
[]
[]
[]
[]
[]
[]
[]
[]
[]
[]
[]
[]
[]
[null,null,null,"Aspetos importantes que a empresa pretende referir\nIdentificar a atividade ou operação ao qual o cometário respeita."]
[]
[]
[]
[null,"A11 - Colmatagem de rolhas"]
[]
[]
[]
[]
[]
[]
[]
[]
[]
[]
[]
[]
[]
[]
[]
[]
[]
[]
[]
[]
[]
[]
[]
[]
[]
[]
[]
[]
[]
[]
[]
[]
[]
[]
[]
[]
[]
[]
[]
[]
[]
[]
[]
[null,null,null,"Aspetos importantes que a empresa pretende referir\nIdentificar a atividade ou operação ao qual o cometário respeita."]
[]
[]
[]
[null,"A12 - Revestimento de rolhas"]
[]
[]
[]
[]
[]
[]
[]
[]
[]
[]
[]
[]
[]
[]
[]
[]
[]
[]
[]
[]
[]
[]
[]
[]
[]
[]
[]
[]
[]
[]
[]
[]
[]
[]
[]
[]
[]
[]
[]
[]
[]
[]
[]
[null,null,null,"Aspetos importantes que a empresa pretende referir\nIdentificar a atividade ou operação ao qual o cometário respeita."]
[]
[]
[]
[null,"A14 - Marcação e tratamento de superfície de rolhas"]
[]
[]
[]
[]
[]
[]
[]
[]
[]
[]
[]
[]
[]
[]
[]
[]
[]
[]
[]
[]
[]
[]
[]
[]
[]
[]
[]
[]
[]
[]
[]
[]
[]
[]
[]
[]
[]
[]
[]
[]
[]
[]
[]
[]
[]
[]
[]
[null,null,null,null,null,null,null,null,null,null,null,null,null,null,null,false,false,null,"%"]
[]
[]
[]
[]
[]
[]
[]
[]
[]
[]
[]
[]
[]
[]
[null,null,null,"Aspetos importantes que a empresa pretende referir\nIdentificar a atividade ou operação ao qual o cometário respeita."]
[]
[]
[]
[null,"Atividades Transversais finais\n\nNas Atividades (finais) Transversais (AFTx) encontrará perguntas de escolha múltipla e de resposta descritiva. \nNenhuma das questões é de resposta obrigatória."]
[]
[]
[]
[null,null,null,"AFT1 Que outras atividades a empresa realiza que não estão contempladas neste questionário?"]
[]
[]
[]
[null,null,null,"AFT2 Se não tivesse quaisquer limitações financeiras, quais seriam as 3 operações prioritárias para o investimento da empresa no seu apetrechamento tecnológico?"]
[]
[]
[]
[]
[]
[]
[]
[]
[]
[]
[]
[]
[]
[]
[]
[]
[]
[]
[]
[]
[]
[]
[]
[]
[]
[]
[null,null,null,"AFT6 Em que atividades / operações é que a empresa considera que a oferta tecnológica atualmente disponível no mercado não corresponde às necessidades que espera ter nos próximos anos? "]
[]
[]
[]
[]
[]
[]
[]
[]
[]
[]
[null,null,null,"Aspetos gerais importantes que a empresa pretende referir"]
[]
[]
[]
[null,null,null,null,null,null,null,null,null,null,null,null,null,null,null,null,null,null,null,"Obrigado pela sua colaboração!"]

{"sheet":"result","index":1,"n_rows":243,"n_cols":2,"rows_kept":243,"cut":false,"hidden":true,"merged":[]}
["Empresa",{"$f":"QUESTIONARIO!N20","v":0}]
["Técnico",{"$f":"QUESTIONARIO!N22","v":0}]
["AIT1.1a",{"$f":"QUESTIONARIO!D32","v":0}]
["AIT1.1b",{"$f":"QUESTIONARIO!D35","v":0}]
["AIT1.2",{"$f":"QUESTIONARIO!D38","v":0}]
["AIT1.3",{"$f":"QUESTIONARIO!D41","v":0}]
["AIT2.1a",{"$f":"QUESTIONARIO!D49","v":0}]
["AIT2.1b",{"$f":"QUESTIONARIO!D53","v":0}]
["AIT2.1c",{"$f":"QUESTIONARIO!D57","v":0}]
["AIT2.1d",{"$f":"QUESTIONARIO!D61","v":0}]
["AIT2.1e",{"$f":"QUESTIONARIO!D65","v":0}]
["AIT2.1f",{"$f":"QUESTIONARIO!D69","v":0}]
["AIT2.1g",{"$f":"QUESTIONARIO!D73","v":0}]
["AIT2.1h",{"$f":"QUESTIONARIO!D77","v":0}]
["AIT2.1i",{"$f":"QUESTIONARIO!D81","v":0}]
["AIT2.2"]
["AIT2.3"]
["AIT3.1"]
["AIT3.1_sim",{"$f":"QUESTIONARIO!E132","v":0}]
["AIT3.2"]
["AIT3.2_outro",{"$f":"QUESTIONARIO!H139","v":0}]
["AIT3.3",{"$f":"QUESTIONARIO!D142","v":0}]
["AIT3.4"]
["AIT3.4_sim",{"$f":"QUESTIONARIO!E148","v":0}]
["AIT3.5"]
["AIT3.5_sim",{"$f":"QUESTIONARIO!E154","v":0}]
["AIT3.6"]
["AIT4.1"]
["AIT4.1_outro",{"$f":"QUESTIONARIO!H167","v":0}]
["AIT4.2"]
["AIT4.3"]
["AIT4.3_outro",{"$f":"QUESTIONARIO!H179","v":0}]
["AIT4.3_qtd eflu",{"$f":"QUESTIONARIO!M181","v":0}]
["AIT4.4"]
["AIT4.5"]
["AIT4.6"]
["AIT4.7"]
["AIT4.8"]
["AIT5.1"]
["AIT5.2"]
["AIT5.2_não",{"$f":"QUESTIONARIO!I215","v":0}]
["AIT5.3"]
["AIT5.4"]
["AIT5.4_biomass",{"$f":"QUESTIONARIO!H223","v":0}]
["AIT5.4_outro",{"$f":"QUESTIONARIO!H226","v":0}]
["AIT5.5_biomass"]
["AIT5.5_biomass.qual",{"$f":"QUESTIONARIO!H229","v":0}]
["AIT5.5_fotovolt"]
["AIT5.5_termica"]
["AIT5.5_outro"]
["AIT5.5_outro.qual",{"$f":"QUESTIONARIO!H232","v":0}]
["AIT5.5_pot",{"$f":"QUESTIONARIO!K234","v":0}]
["AIT5.6"]
["AIT5.6_sim",{"$f":"QUESTIONARIO!K239","v":0}]
["AIT5.7"]
["AIT5.7_sim",{"$f":"QUESTIONARIO!K243","v":0}]
["AIT5.8"]
["AIT5.8_detail",{"$f":"QUESTIONARIO!E250","v":0}]
["AIT5.9"]
["AIT5.10"]
["AIT6.1",{"$f":"QUESTIONARIO!D266","v":0}]
["AIT6.2",{"$f":"QUESTIONARIO!D270","v":0}]
["AIT6.3",{"$f":"QUESTIONARIO!D274","v":0}]
["AIT_Observacoes",{"$f":"QUESTIONARIO!D278","v":0}]
["A1O1"]
["A1O2.1"]
["A1O2.2"]
["A1O2.3"]
["A1O3"]
["A1O4"]
["A1O5"]
["A1O6"]
["A1O7"]
["A1O8"]
["A1O9"]
["A1O_Observacoes",{"$f":"QUESTIONARIO!D348","v":0}]
["A2O1"]
["A2O2"]
["A2O3"]
["A2O4"]
["A2O5"]
["A2O6"]
["A2O7"]
["A2O8"]
["A2O_Observacoes",{"$f":"QUESTIONARIO!D400","v":0}]
["A3O1"]
["A3O2"]
["A3O3"]
["A3O4"]
["A3O5"]
["A3O6"]
["A3O6_mes"]
["A3O7"]
["A3O8"]
["A3O8_MES"]
["A3O9"]
["A3O9_RAIOX"]
["A3O9_MES"]
["A3O10"]
["A3O11"]
["A3O12"]
["A3O12_VOL"]
["A3O_Observacoes",{"$f":"QUESTIONARIO!$D$480","v":0}]
["A4O1"]
["A4O2"]
["A4O3"]
["A4O4"]
["A4O5"]
["A4O5_informat"]
["A4O5_costa"]
["A4O6"]
["A4O6_informat"]
["A4O7"]
["A4O8"]
["A4O8_AIO"]
["A4O8_diam"]
["A4O8_comp"]
["A4O8_topos"]
["A4O8_despoeir"]
["A4O8_informat"]
["A4O8_parametr"]
["A4O9"]
["A4O9_raiox"]
["A4O9_informat"]
["A4O10"]
["A4O11"]
["A4O12"]
["A4O12_vol"]
["A4O_Observacoes",{"$f":"QUESTIONARIO!$D$569","v":0}]
["A6O1"]
["A6O2"]
["A6O3"]
["A6O4"]
["A6O4_AIO"]
["A6O4_diam"]
["A6O4_comp"]
["A6O4_topos"]
["A6O4_despoeir"]
["A6O4_informat"]
["A6O4_parametr"]
["A6O5"]
["A6O5_raiox"]
["A6O5_mes"]
["A6O6"]
["A6O7"]
["A6O8"]
["A6O8_vol"]
["A6O8_Observacoes",{"$f":"QUESTIONARIO!$D$629","v":0}]
["A7O1"]
["A7O2"]
["A7O2_RAIOX"]
["A7O2_MES"]
["A7O3"]
["A7O4"]
["A7O5"]
["A7O5_AIO"]
["A7O5_diam"]
["A7O5_comp"]
["A7O5_topos"]
["A7O5_despoeir"]
["A7O5_informat"]
["A7O5_parametr"]
["A7O6"]
["A7O6_RAIOX"]
["A7O6_MES"]
["A7O7"]
["A7O8.1"]
["A7O8.2"]
["A7O8.2_VOL"]
["A7O_Observaçoes",{"$f":"QUESTIONARIO!$D$695","v":0}]
["A10O1"]
["A10O2"]
["A10O3"]
["A10O4"]
["A10O5"]
["A10O5_raiox"]
["A10O5_informat"]
["A10O6"]
["A10O7.1"]
["A10O7.2"]
["A10O7.2_vol"]
["A10O_Observacoes",{"$f":"QUESTIONARIO!D748","v":0}]
["A11O1"]
["A11O2"]
["A11O3"]
["A11O4"]
["A11O4_raiox"]
["A11O4_informat"]
["A11O5"]
["A11O6.1"]
["A11O6.2"]
["A11O6.2_vol"]
["A11O_Observacoes",{"$f":"QUESTIONARIO!D796","v":0}]
["A12O1"]
["A12O2"]
["A12O3"]
["A12O4"]
["A12O4_raiox"]
["A12O4_informat"]
["A12O5"]
["A12O6.1"]
["A12O6.2"]
["A12O6.2_vol"]
["A12O_Observacoes",{"$f":"QUESTIONARIO!D844","v":0}]
["A14O1"]
["A14O2"]
["A14O3"]
["A14O3_raiox"]
["A14O3_informat"]
["A14O4"]
["A14O4_informat"]
["A14O4_tinta"]
["A14O4_fogo"]
["A14O4_laser"]
["A14O4_fogo/eletr"]
["A14O4_indução"]
["A14O5"]
["A14O5_informat"]
["A14O6"]
["A14O6_cquali"]
["A14O6_informat"]
["A14O7"]
["A14O7_%",{"$f":"QUESTIONARIO!O895","v":0}]
["A14O8.1"]
["A14O8.2"]
["A14O8.2_vol"]
["A14O_Observacoes",{"$f":"QUESTIONARIO!D911","v":0}]
["AFT1",{"$f":"QUESTIONARIO!D919","v":0}]
["AFT2",{"$f":"QUESTIONARIO!D923","v":0}]
["AFT3"]
["AFT3_sim",{"$f":"QUESTIONARIO!E929","v":0}]
["AFT4"]
["AFT4_sim",{"$f":"QUESTIONARIO!E935","v":0}]
["AFT5_financeiras"]
["AFT5_soluções"]
["AFT5_gestao"]
["AFT5_operadores"]
["AFT5_desnecessar"]
["AFT5_outras"]
["AFT5_outras_desc",{"$f":"QUESTIONARIO!G945","v":0}]
["AFT6",{"$f":"QUESTIONARIO!D950","v":0}]
["AFT7"]
["Observações",{"$f":"QUESTIONARIO!D961","v":0}]